bitfinex/quotes_BTCUSD_20260110
["timestamp","ask_amount","ask_price","bid_price","bid_amount"]
[1768073316306,0.01103716,90603.0,90596.0,0.0460753]
[1768073316746,0.01103704,90604.0,90596.0,0.0460753]
[1768073317104,0.08830087,90606.0,90596.0,0.0460753]
[1768073317105,0.03311691,90605.0,90596.0,0.0460753]
[1768073317505,0.01103704,90604.0,90596.0,0.0460753]
[1768073319839,0.03311691,90605.0,90596.0,0.0460753]
[1768073320226,0.01103704,90604.0,90596.0,0.0460753]
[1768073321148,0.03311691,90605.0,90596.0,0.0460753]
[1768073322149,0.01103704,90604.0,90596.0,0.0460753]
[1768073322731,0.03311691,90605.0,90596.0,0.0460753]
[1768073324436,0.01103704,90604.0,90596.0,0.0460753]
[1768073327128,0.01103716,90603.0,90592.0,0.03312217]
[1768073329201,0.01103704,90604.0,90592.0,0.03312217]
[1768073329323,0.01103704,90604.0,90590.0,0.35188522]
[1768073329524,0.01103704,90604.0,90590.0,0.35193965]
[1768073329723,0.01103704,90604.0,90591.0,0.03312217]
[1768073330288,0.01103704,90604.0,90591.0,0.04416079]
[1768073330688,0.01103704,90604.0,90591.0,0.01103862]
[1768073330887,0.01103704,90604.0,90592.0,0.03312217]
[1768073331434,0.01103704,90604.0,90592.0,0.08119506]
[1768073331709,0.01103704,90604.0,90592.0,0.04807289]
[1768073332092,0.01103704,90604.0,90592.0,0.08119506]
[1768073334237,0.01103716,90603.0,90592.0,0.08119506]
[1768073334814,0.01103728,90602.0,90592.0,0.08119506]
[1768073335174,0.01103728,90602.0,90592.0,0.04807289]
[1768073335393,0.0110374,90601.0,90592.0,0.04807289]
[1768073335597,0.0110374,90601.0,90592.0,0.08119506]
[1768073335957,0.01103728,90602.0,90592.0,0.04807289]
[1768073336162,0.01103728,90602.0,90593.0,0.0110374]
[1768073341105,0.0110374,90601.0,90593.0,0.0110374]
[1768073341308,0.01103728,90602.0,90593.0,0.0110374]
[1768073342410,0.01103716,90603.0,90593.0,0.0110374]
[1768073344431,0.01103728,90602.0,90593.0,0.01099232]
[1768073344948,0.01103728,90602.0,90593.0,0.01094724]
[1768073347020,0.01103716,90603.0,90593.0,0.01094724]
[1768073348082,0.01103728,90602.0,90593.0,0.01094724]
[1768073348278,0.01103716,90603.0,90593.0,0.01094724]
[1768073348889,0.01103728,90602.0,90593.0,0.01094724]
[1768073355243,0.01103716,90603.0,90593.0,0.01094724]
[1768073356569,0.01103728,90602.0,90593.0,0.01094724]
[1768073357796,0.0110374,90601.0,90593.0,0.01094724]
[1768073358975,0.01103728,90602.0,90593.0,0.01094724]
[1768073359729,0.0110374,90601.0,90593.0,0.01094724]
[1768073360979,0.01103728,90602.0,90593.0,0.01094724]
[1768073361149,0.0110374,90601.0,90593.0,0.01094724]
[1768073361298,0.01103728,90602.0,90593.0,0.01094724]
[1768073361699,0.0110374,90601.0,90593.0,0.01094724]
[1768073361941,0.01103728,90602.0,90593.0,0.01094724]
[1768073365314,0.0110374,90601.0,90593.0,0.01094724]
[1768073365475,0.01103728,90602.0,90593.0,0.01094724]
[1768073365717,0.01103716,90603.0,90593.0,0.01094724]
[1768073365901,0.01103728,90602.0,90593.0,0.01094724]
[1768073367116,0.01103716,90603.0,90593.0,0.01094724]
[1768073367350,0.01103728,90602.0,90593.0,0.01094724]
[1768073369083,0.01103716,90603.0,90593.0,0.01094724]
[1768073369229,0.01103728,90602.0,90593.0,0.01094724]
[1768073372386,0.11510455,90604.0,90593.0,0.01094724]
[1768073372617,0.01103716,90603.0,90593.0,0.01094724]
[1768073372737,0.01103728,90602.0,90593.0,0.01094724]
[1768073373139,0.01103728,90602.0,90594.0,0.04902068]
[1768073373360,0.01103716,90603.0,90594.0,0.04902068]
[1768073373806,0.01103728,90602.0,90594.0,0.04902068]
[1768073376622,0.01103728,90602.0,90594.0,0.0488651]
[1768073378900,0.01103716,90603.0,90594.0,0.0488651]
[1768073379103,0.01103728,90602.0,90594.0,0.0488651]
[1768073380335,0.01103716,90603.0,90594.0,0.0488651]
[1768073383546,0.01103728,90602.0,90594.0,0.0488651]
[1768073384105,0.0110374,90601.0,90594.0,0.0488651]
[1768073384976,0.01103752,90600.0,90594.0,0.0488651]
[1768073385543,0.01103752,90600.0,90593.0,0.01094724]
[1768073388954,0.01103764,90599.0,90593.0,0.01094724]
[1768073389637,0.01103752,90600.0,90593.0,0.01094724]
[1768073390886,0.01103764,90599.0,90593.0,0.01094724]
[1768073391083,0.01103752,90600.0,90593.0,0.06042595]
[1768073393202,0.01103752,90600.0,90593.0,0.06038087]
[1768073395723,0.01103764,90599.0,90593.0,0.06038087]
[1768073395979,0.01103752,90600.0,90593.0,0.06038087]
[1768073396181,0.01103752,90600.0,90593.0,0.04947871]
[1768073396317,0.01103764,90599.0,90594.0,0.01103752]
[1768073396525,0.01103752,90600.0,90594.0,0.01103752]
[1768073397362,0.0110374,90601.0,90594.0,0.01103752]
[1768073400274,0.01103728,90602.0,90594.0,0.01103752]
[1768073400396,0.0110374,90601.0,90594.0,0.01103752]
[1768073400796,0.01103752,90600.0,90594.0,0.01103752]
[1768073402927,0.01103764,90599.0,90594.0,0.01103752]
[1768073403337,0.01103752,90600.0,90594.0,0.01103752]
[1768073404250,0.01103764,90599.0,90594.0,0.01103752]
[1768073404650,0.01103764,90599.0,90590.0,5.443e-05]
[1768073406896,0.01103752,90600.0,90590.0,5.443e-05]
[1768073407386,0.01103764,90599.0,90590.0,5.443e-05]
[1768073407608,0.0110374,90601.0,90590.0,5.443e-05]
[1768073407958,0.01103752,90600.0,90590.0,5.443e-05]
[1768073408383,0.01103764,90599.0,90590.0,5.443e-05]
[1768073408737,0.01103752,90600.0,90590.0,5.443e-05]
[1768073409070,0.01103764,90599.0,90590.0,5.443e-05]
[1768073409478,0.0110374,90601.0,90590.0,5.443e-05]
[1768073409758,0.01103728,90602.0,90590.0,5.443e-05]
[1768073410567,0.0110374,90601.0,90590.0,5.443e-05]
[1768073410760,0.01103728,90602.0,90590.0,5.443e-05]
[1768073410993,0.0110374,90601.0,90590.0,5.443e-05]
[1768073411234,0.01103728,90602.0,90590.0,5.443e-05]
[1768073411979,0.04805786,90604.0,90590.0,5.443e-05]
[1768073412198,0.01103728,90602.0,90590.0,5.443e-05]
[1768073412399,0.0110374,90601.0,90590.0,5.443e-05]
[1768073413739,0.01103728,90602.0,90590.0,5.443e-05]
[1768073414043,0.01103752,90600.0,90590.0,5.443e-05]
[1768073414190,0.0110374,90601.0,90590.0,5.443e-05]
[1768073415088,0.01103752,90600.0,90590.0,5.443e-05]
[1768073415299,0.0110374,90601.0,90590.0,5.443e-05]
[1768073415486,0.01103752,90600.0,90590.0,5.443e-05]
[1768073415859,0.0110374,90601.0,90590.0,5.443e-05]
[1768073417947,0.01103728,90602.0,90590.0,5.443e-05]
[1768073419593,0.0110374,90601.0,90590.0,5.443e-05]
[1768073421463,0.01103752,90600.0,90590.0,5.443e-05]
[1768073421666,0.0110374,90601.0,90590.0,5.443e-05]
[1768073421872,0.01103752,90600.0,90590.0,5.443e-05]
[1768073424511,0.01103752,90600.0,90590.0,0.29278716]
[1768073425153,0.01103764,90599.0,90590.0,0.29278716]
[1768073427007,0.01103752,90600.0,90590.0,0.29278716]
[1768073427874,0.01103764,90599.0,90590.0,0.29278716]
[1768073430542,0.01103752,90600.0,90590.0,0.29278716]
[1768073433499,0.01103764,90599.0,90590.0,0.29278716]
[1768073434336,0.01103752,90600.0,90590.0,0.29278716]
[1768073434562,0.0110374,90601.0,90590.0,0.29278716]
[1768073436032,0.01103728,90602.0,90590.0,0.29278716]
[1768073436232,0.0110374,90601.0,90590.0,0.29278716]
[1768073436465,0.01103728,90602.0,90590.0,0.29278716]
[1768073437510,0.0110374,90601.0,90590.0,0.29278716]
[1768073440875,0.01103752,90600.0,90590.0,0.29278716]
[1768073441827,0.0110374,90601.0,90590.0,0.29278716]
[1768073442028,0.01103752,90600.0,90590.0,0.29278716]
[1768073443287,0.0110374,90601.0,90590.0,0.29278716]
[1768073444994,0.01103752,90600.0,90590.0,0.29278716]
[1768073445169,0.0110374,90601.0,90590.0,0.29278716]
[1768073446318,0.01103752,90600.0,90590.0,0.29278716]
[1768073450774,0.0110374,90601.0,90590.0,0.29278716]
[1768073451488,0.01103752,90600.0,90590.0,0.29278716]
[1768073451640,0.0110374,90601.0,90590.0,0.29278716]
[1768073452267,0.01103728,90602.0,90590.0,0.29278716]
[1768073452500,0.05983013,90602.0,90590.0,0.29278716]
[1768073453487,0.04879285,90602.0,90590.0,0.29278716]
[1768073453693,0.05983013,90602.0,90590.0,0.3038259]
[1768073454302,0.04879285,90602.0,90590.0,0.3038259]
[1768073454852,0.04879285,90602.0,90590.0,0.29278716]
[1768073454990,0.05983013,90602.0,90590.0,0.29278716]
[1768073455193,0.04879285,90602.0,90590.0,0.3038259]
[1768073456019,0.04879285,90602.0,90591.0,0.01103862]
[1768073456346,0.04879285,90602.0,90590.0,0.3038259]
[1768073456845,0.04879285,90602.0,90591.0,0.01103862]
[1768073457348,0.04879285,90602.0,90592.0,0.0110385]
[1768073457771,0.04879285,90602.0,90601.0,0.00034703]
[1768073461860,0.04879285,90605.0,90601.0,0.00034703]
[1768073462059,0.04879285,90605.0,90602.0,0.000999]
[1768073462718,0.04879285,90605.0,90594.0,0.01103825]
[1768073462928,0.04879285,90605.0,90595.0,0.01103813]
[1768073463136,0.04879285,90605.0,90593.0,0.01103838]
[1768073463340,0.04879285,90605.0,90594.0,0.01103825]
[1768073464180,0.04879285,90605.0,90595.0,0.01103813]
[1768073464605,0.04879285,90605.0,90593.0,0.01103838]
[1768073464962,0.05982976,90605.0,90592.0,0.0110385]
[1768073465581,0.04879285,90605.0,90593.0,0.01103838]
[1768073465922,0.04879285,90605.0,90593.0,0.04416055]
[1768073466130,0.04879285,90605.0,90594.0,0.01103825]
[1768073466326,0.04879285,90605.0,90593.0,0.04416055]
[1768073466555,0.04879285,90605.0,90594.0,0.01103825]
[1768073466891,0.04879285,90605.0,90593.0,0.04416055]
[1768073467301,0.05982976,90605.0,90604.0,0.00033245]
[1768073467785,0.04879285,90605.0,90604.0,0.00033245]
[1768073468457,0.04879285,90605.0,90604.0,9.509e-05]
[1768073468861,0.05982976,90605.0,90593.0,0.01103862]
[1768073469428,0.05982976,90605.0,90593.0,0.022077]
[1768073469625,0.05982976,90605.0,90593.0,0.01103862]
[1768073469890,0.05982976,90605.0,90593.0,0.022077]
[1768073469891,0.04879285,90605.0,90593.0,0.022077]
[1768073470211,0.04879285,90605.0,90595.0,0.01103813]
[1768073470494,0.04879285,90605.0,90596.0,0.01103801]
[1768073470663,0.04879285,90605.0,90595.0,0.01103813]
[1768073470965,0.04879285,90605.0,90593.0,0.022077]
[1768073471738,0.04879285,90605.0,90593.0,0.01103862]
[1768073471985,0.04879285,90605.0,90593.0,0.022077]
[1768073472516,0.04879285,90605.0,90594.0,0.01103825]
[1768073472885,0.04879285,90605.0,90595.0,0.01103813]
[1768073473072,0.04879285,90605.0,90594.0,0.01103825]
[1768073473267,0.04879285,90605.0,90595.0,0.01103813]
[1768073478371,0.04879285,90605.0,90594.0,0.01103825]
[1768073479643,0.04879285,90605.0,90595.0,0.01103813]
[1768073479846,0.04879285,90605.0,90594.0,0.01103825]
[1768073480229,0.04879285,90605.0,90593.0,0.022077]
[1768073480852,0.04879285,90605.0,90594.0,0.01103825]
[1768073481862,0.04879285,90605.0,90593.0,0.022077]
[1768073482281,0.02208,90606.0,90595.0,0.01103813]
[1768073482935,0.02208,90606.0,90594.0,0.01103825]
[1768073483336,0.02208,90606.0,90595.0,0.01103813]
[1768073484115,0.02208,90606.0,90594.0,0.01103825]
[1768073484617,0.02208,90606.0,90595.0,0.03311813]
[1768073485132,0.02208,90606.0,90595.0,0.01103813]
[1768073485363,0.02208,90606.0,90596.0,0.02208]
[1768073488623,0.02208,90607.0,90596.0,0.02208]
[1768073489190,0.02208,90607.0,90596.0,0.03311801]
[1768073489595,0.03311667,90607.0,90596.0,0.02208]
[1768073489798,0.01103679,90606.0,90596.0,0.02208]
[1768073490002,0.03311667,90607.0,90596.0,0.02208]
[1768073490924,0.02208,90607.0,90596.0,0.02208]
[1768073496463,0.02208,90607.0,90596.0,0.03311801]
[1768073496584,0.02208,90607.0,90596.0,0.02208]
[1768073497009,0.02208,90607.0,90596.0,0.03311801]
[1768073497476,0.02208,90607.0,90596.0,0.01103801]
[1768073497616,0.02208,90607.0,90597.0,0.03311789]
[1768073497871,0.02208,90607.0,90597.0,0.02208]
[1768073500850,0.03311667,90607.0,90597.0,0.02208]
[1768073502320,0.01103679,90606.0,90597.0,0.02208]
[1768073502516,0.03311667,90607.0,90597.0,0.02208]
[1768073503212,0.02208,90607.0,90597.0,0.02208]
[1768073503411,0.03311667,90607.0,90597.0,0.02208]
[1768073504183,0.02208,90607.0,90597.0,0.02208]
[1768073512662,0.03311667,90607.0,90597.0,0.02208]
[1768073513775,0.02208,90607.0,90597.0,0.02208]
[1768073514130,0.03311667,90607.0,90597.0,0.02208]
[1768073514771,0.01103679,90606.0,90597.0,0.02208]
[1768073514973,0.02208,90607.0,90597.0,0.02208]
[1768073515150,0.03311667,90607.0,90597.0,0.02208]
[1768073515689,0.01103679,90606.0,90597.0,0.02208]
[1768073516030,0.02208,90607.0,90597.0,0.02208]
[1768073516235,0.01103679,90606.0,90597.0,0.02208]
[1768073516436,0.03311667,90607.0,90597.0,0.02208]
[1768073516708,0.02208,90607.0,90597.0,0.02208]
[1768073517057,0.03311667,90607.0,90597.0,0.02208]
[1768073517708,0.02208,90606.0,90598.0,0.01103777]
[1768073518319,0.02208,90606.0,90597.0,0.01103789]
[1768073518529,0.02208,90606.0,90598.0,0.02208]
[1768073518836,0.01153371,90611.0,90598.0,0.03311777]
[1768073519037,0.02208,90607.0,90598.0,0.08209854]
[1768073521306,0.02208,90607.0,90598.0,0.07106077]
[1768073521971,0.02208,90607.0,90598.0,0.08209854]
[1768073522881,0.02208,90607.0,90599.0,0.06001841]
[1768073523767,0.02208,90607.0,90599.0,0.04898077]
[1768073523967,0.02208,90607.0,90599.0,0.06001841]
[1768073524747,0.02208,90607.0,90599.0,0.04898077]
[1768073527213,0.02208,90607.0,90599.0,0.06001841]
[1768073527419,0.02208,90607.0,90599.0,0.04898077]
[1768073527761,0.02208,90607.0,90599.0,0.06001841]
[1768073527988,0.00049753,90611.0,90600.0,0.01103752]
[1768073528234,0.02208,90610.0,90600.0,0.01103752]
[1768073528631,0.02208,90610.0,90599.0,0.06001841]
[1768073528852,0.02208,90610.0,90599.0,0.04898077]
[1768073529341,0.02208,90610.0,90599.0,0.07106077]
[1768073529874,0.02208,90610.0,90599.0,0.08209841]
[1768073530722,0.02208,90610.0,90599.0,0.07106077]
[1768073530871,0.00049753,90611.0,90599.0,0.08209841]
[1768073531074,0.02257753,90611.0,90599.0,0.08209841]
[1768073531273,0.02257753,90611.0,90599.0,0.06001841]
[1768073531677,0.02257753,90611.0,90599.0,0.08259594]
[1768073532236,0.03361371,90611.0,90599.0,0.0715583]
[1768073532577,0.02257753,90611.0,90599.0,0.08259594]
[1768073533698,0.02257753,90611.0,90600.0,0.05710664]
[1768073533907,0.02257753,90611.0,90600.0,0.04606912]
[1768073534469,0.00049753,90611.0,90600.0,0.04606912]
[1768073536105,0.00049753,90611.0,90600.0,0.05710664]
[1768073536244,0.00049753,90611.0,90600.0,0.06814912]
[1768073537406,0.00049753,90611.0,90601.0,0.04606912]
[1768073537882,0.00049753,90611.0,90602.0,0.04606912]
[1768073539487,0.00049753,90611.0,90602.0,0.0571064]
[1768073540733,0.00049753,90611.0,90602.0,0.04606912]
[1768073540862,0.00049753,90611.0,90602.0,0.0571064]
[1768073541073,0.00049753,90611.0,90603.0,0.01103716]
[1768073541254,0.00049753,90611.0,90602.0,0.0571064]
[1768073541457,0.00049753,90611.0,90602.0,0.04606912]
[1768073541949,0.00049753,90611.0,90602.0,0.0571064]
[1768073542979,0.00049753,90611.0,90602.0,0.04606912]
[1768073543263,0.00049753,90611.0,90602.0,0.0571064]
[1768073544044,0.00049753,90611.0,90604.0,0.01103704]
[1768073544238,0.00049753,90611.0,90602.0,0.0571064]
[1768073544445,0.00049753,90611.0,90602.0,0.04606912]
[1768073544613,0.00049753,90611.0,90602.0,0.0571064]
[1768073544813,0.00049753,90611.0,90602.0,0.04606912]
[1768073545253,0.00049753,90611.0,90602.0,0.0571064]
[1768073545455,0.00049753,90611.0,90602.0,0.04606912]
[1768073556673,0.01153371,90611.0,90602.0,0.04606912]
[1768073556826,0.00049753,90611.0,90602.0,0.04606912]
[1768073557722,0.00049753,90611.0,90603.0,0.01103716]
[1768073557924,0.00049753,90611.0,90602.0,0.04606912]
[1768073558167,0.00049753,90611.0,90602.0,0.0571064]
[1768073558785,0.00049753,90611.0,90602.0,0.04606912]
[1768073562520,0.01153371,90611.0,90602.0,0.04606912]
[1768073563351,0.00049753,90611.0,90602.0,0.04606912]
[1768073563894,0.01153371,90611.0,90602.0,0.04606912]
[1768073564246,0.00049753,90611.0,90602.0,0.04606912]
[1768073564470,0.01153371,90611.0,90602.0,0.04606912]
[1768073564689,0.01153371,90611.0,90601.0,0.02208]
[1768073565315,0.0110363,90610.0,90601.0,0.02208]
[1768073565533,0.01103643,90609.0,90601.0,0.02208]
[1768073566023,0.0110363,90610.0,90601.0,0.02208]
[1768073566654,0.01103643,90609.0,90601.0,0.02208]
[1768073567102,0.01103655,90608.0,90601.0,0.02208]
[1768073567586,0.01103667,90607.0,90601.0,0.02208]
[1768073567972,0.01103655,90608.0,90601.0,0.02208]
[1768073568721,0.01103643,90609.0,90601.0,0.02208]
[1768073569549,0.01103667,90607.0,90597.0,0.04715476]
[1768073569778,0.01103728,90602.0,90597.0,0.04715476]
[1768073569985,0.01103691,90605.0,90598.0,0.03312053]
[1768073570187,0.01103691,90605.0,90598.0,0.03307545]
[1768073571351,0.01103679,90606.0,90598.0,0.03307545]
[1768073571756,0.01103691,90605.0,90598.0,0.03307545]
[1768073574137,0.01103679,90606.0,90598.0,0.03307545]
[1768073575047,0.01103679,90606.0,90598.0,0.03303037]
[1768073575247,0.01103691,90605.0,90598.0,0.03303037]
[1768073575451,0.01103704,90604.0,90598.0,0.03303037]
[1768073575667,0.01103679,90606.0,90598.0,0.03303037]
[1768073578031,0.01103667,90607.0,90598.0,0.03303037]
[1768073580979,0.01103704,90604.0,90598.0,0.03303037]
[1768073581238,0.01103691,90605.0,90598.0,0.03303037]
[1768073581643,0.01103667,90607.0,90598.0,0.03303037]
[1768073581778,0.01103679,90606.0,90598.0,0.03303037]
[1768073582178,0.01103667,90607.0,90598.0,0.03303037]
[1768073582570,0.01103679,90606.0,90598.0,0.03303037]
[1768073582768,0.01103716,90603.0,90598.0,0.03303037]
[1768073583205,0.01103728,90602.0,90598.0,0.03303037]
[1768073583555,0.04835821,90599.0,90598.0,0.03303037]
[1768073583763,0.05519214,90593.0,90590.0,5.443e-05]
[1768073583965,0.05519214,90593.0,90590.0,9.37e-06]
[1768073583966,0.04835821,90592.0,90590.0,9.37e-06]
[1768073585897,0.05939647,90594.0,90590.0,9.37e-06]
[1768073586293,0.05939647,90594.0,90588.0,0.03307845]
[1768073586499,0.05943921,90594.0,90588.0,0.03307845]
[1768073586709,0.01103838,90593.0,90588.0,0.03307845]
[1768073586840,0.02207662,90592.0,90588.0,0.03307845]
[1768073588654,0.02207662,90592.0,90588.0,0.03303339]
[1768073593617,0.03311512,90592.0,90588.0,0.03303339]
[1768073595037,0.02207662,90592.0,90588.0,0.03303339]
[1768073598285,4.275e-05,90594.0,90592.0,0.000999]
[1768073598696,4.275e-05,90594.0,90588.0,0.03303339]
[1768073607102,4.275e-05,90594.0,90589.0,0.04731638]
[1768073607750,4.275e-05,90594.0,90589.0,0.05835415]
[1768073612512,4.275e-05,90594.0,90589.0,0.01103777]
[1768073616731,4.275e-05,90594.0,90589.0,0.02207663]
[1768073617143,4.275e-05,90594.0,90589.0,0.01103777]
[1768073617862,7.5e-07,90594.0,90591.0,0.01103862]
[1768073619014,7.5e-07,90594.0,90592.0,0.05519251]
[1768073619155,7.5e-07,90594.0,90592.0,0.05519246]
[1768073620261,7.5e-07,90594.0,90591.0,0.06623165]
[1768073620462,7.5e-07,90594.0,90592.0,0.05519247]
[1768073620667,7.5e-07,90594.0,90593.0,0.0551919]
[1768073623462,7.5e-07,90594.0,90591.0,0.09935413]
[1768073624091,7.5e-07,90594.0,90592.0,0.05519209]
[1768073624524,7.5e-07,90594.0,90591.0,0.04416156]
[1768073624932,7.5e-07,90594.0,90591.0,0.0993545]
[1768073625112,7.5e-07,90594.0,90591.0,0.04416156]
[1768073633483,7.5e-07,90594.0,90591.0,0.03312294]
[1768073633688,7.5e-07,90594.0,90591.0,0.04416156]
[1768073636999,7.5e-07,90594.0,90591.0,0.09935464]
[1768073637802,7.5e-07,90594.0,90591.0,0.04416156]
[1768073637987,7.5e-07,90594.0,90591.0,0.09935449]
[1768073639087,7.5e-07,90594.0,90591.0,0.04416156]
[1768073640555,7.5e-07,90594.0,90591.0,0.03312294]
[1768073640755,7.5e-07,90594.0,90591.0,0.04416156]
[1768073642670,7.5e-07,90594.0,90591.0,0.09935428]
[1768073644869,7.5e-07,90594.0,90592.0,0.05519249]
[1768073647603,7.5e-07,90594.0,90591.0,0.06623126]
[1768073650617,7.5e-07,90594.0,90592.0,0.05519249]
[1768073650921,7.5e-07,90594.0,90591.0,0.06623123]
[1768073651662,7.5e-07,90594.0,90592.0,0.05519245]
[1768073653904,7.5e-07,90594.0,90591.0,0.01103862]
[1768073654226,7.5e-07,90594.0,90591.0,0.06623166]
[1768073654418,7.5e-07,90594.0,90592.0,0.05519235]
[1768073656145,7.5e-07,90594.0,90593.0,0.0551919]
[1768073656700,7.5e-07,90594.0,90592.0,0.05519235]
[1768073658196,7.5e-07,90594.0,90591.0,0.06623067]
[1768073658402,7.5e-07,90594.0,90592.0,0.05519251]
[1768073659926,7.5e-07,90594.0,90593.0,0.0551919]
[1768073660720,7.5e-07,90594.0,90592.0,0.05519251]
[1768073661751,7.5e-07,90594.0,90591.0,0.01103862]
[1768073664343,7.5e-07,90594.0,90592.0,0.05519242]
[1768073666265,7.5e-07,90594.0,90591.0,0.01103862]
[1768073666468,7.5e-07,90594.0,90592.0,0.05519251]
[1768073668385,7.5e-07,90594.0,90591.0,0.01103862]
[1768073670219,7.5e-07,90594.0,90592.0,0.055192]
[1768073674111,7.5e-07,90594.0,90593.0,0.0551919]
[1768073675533,7.5e-07,90594.0,90591.0,0.06623118]
[1768073675784,7.5e-07,90594.0,90592.0,0.05519201]
[1768073676303,7.5e-07,90594.0,90591.0,0.06623164]
[1768073677267,7.5e-07,90594.0,90593.0,0.1017853]
[1768073678397,7.5e-07,90594.0,90593.0,0.0551919]
[1768073680892,7.5e-07,90594.0,90591.0,0.05763202]
[1768073681821,7.5e-07,90594.0,90593.0,0.0551919]
[1768073683005,7.5e-07,90594.0,90592.0,0.05519235]
[1768073683793,7.5e-07,90594.0,90593.0,0.0551919]
[1768073685131,7.5e-07,90594.0,90592.0,0.10178582]
[1768073687258,7.5e-07,90594.0,90592.0,0.0465934]
[1768073687914,7.5e-07,90594.0,90593.0,0.0465934]
[1768073688320,7.5e-07,90594.0,90593.0,0.1017853]
[1768073688941,7.5e-07,90594.0,90593.0,0.0551919]
[1768073689148,0.04500376,90608.0,90593.0,0.1238653]
[1768073689355,0.00050238,90612.0,90600.0,0.01103752]
[1768073689551,0.04550614,90612.0,90600.0,0.01103752]
[1768073689774,0.04500376,90611.0,90599.0,0.01103764]
[1768073690599,0.04500376,90611.0,90598.0,0.33688612]
[1768073691782,0.04500376,90611.0,90599.0,0.01103764]
[1768073692124,0.04500376,90611.0,90598.0,0.33688612]
[1768073693211,0.05603994,90611.0,90598.0,0.33688612]
[1768073693354,0.0110363,90610.0,90598.0,0.32584835]
[1768073693562,0.05889203,90610.0,90598.0,0.03311994]
[1768073693764,0.05889203,90610.0,90600.0,0.29272841]
[1768073694383,0.04785573,90610.0,90600.0,0.29272841]
[1768073694634,0.05889203,90610.0,90600.0,0.29272841]
[1768073695472,0.04785573,90610.0,90600.0,0.29272841]
[1768073698469,0.01103618,90611.0,90601.0,0.04926541]
[1768073698634,0.01153844,90612.0,90601.0,0.04926541]
[1768073699798,0.00050238,90612.0,90601.0,0.04926541]
[1768073700084,0.01153844,90612.0,90601.0,0.04926541]
[1768073701679,0.01103618,90611.0,90601.0,0.04926541]
[1768073702051,0.01103643,90609.0,90601.0,0.04926541]
[1768073702249,0.0110363,90610.0,90601.0,0.04926541]
[1768073702783,0.01103643,90609.0,90601.0,0.04926541]
[1768073703659,0.06044995,90608.0,90598.0,0.03311994]
[1768073703855,0.0494134,90608.0,90598.0,0.03311994]
[1768073706049,0.0494134,90608.0,90598.0,0.04415771]
[1768073707771,0.0494134,90608.0,90598.0,0.03311994]
[1768073707914,0.0494134,90608.0,90597.0,0.01103789]
[1768073708109,0.0494134,90608.0,90597.0,0.04415783]
[1768073708386,0.0494134,90608.0,90598.0,0.01103777]
[1768073710031,0.0494134,90608.0,90597.0,0.04415783]
[1768073710151,0.0494134,90608.0,90597.0,0.03311994]
[1768073711224,0.0494134,90608.0,90597.0,0.04415783]
[1768073712164,0.0494134,90608.0,90598.0,0.01103777]
[1768073712506,0.0494134,90608.0,90597.0,0.04415783]
[1768073713495,0.0494134,90608.0,90597.0,0.03311994]
[1768073713720,0.0494134,90608.0,90597.0,0.04415783]
[1768073714891,0.0494134,90608.0,90598.0,0.01103777]
[1768073715086,0.0494134,90608.0,90599.0,0.01103764]
[1768073715319,0.0494134,90608.0,90598.0,0.01103777]
[1768073715429,0.0494134,90608.0,90599.0,0.01103764]
[1768073715791,0.0494134,90608.0,90598.0,0.01103777]
[1768073715994,0.0494134,90608.0,90599.0,0.01103764]
[1768073716153,0.0494134,90608.0,90598.0,0.01103777]
[1768073716356,0.0494134,90608.0,90599.0,0.01103764]
[1768073716875,0.0494134,90608.0,90598.0,0.01103777]
[1768073717087,0.0494134,90608.0,90597.0,0.03311994]
[1768073717275,0.0494134,90608.0,90597.0,0.04415783]
[1768073717671,0.0494134,90608.0,90597.0,0.03311994]
[1768073717881,0.0494134,90608.0,90597.0,0.04415783]
[1768073718282,0.0494134,90608.0,90597.0,0.03311994]
[1768073718513,0.0494134,90608.0,90597.0,0.04415783]
[1768073719125,0.0494134,90608.0,90598.0,0.01103777]
[1768073719278,0.0494134,90608.0,90599.0,0.01103764]
[1768073721141,0.0494134,90608.0,90598.0,0.01103777]
[1768073721344,0.0494134,90608.0,90600.0,0.01103752]
[1768073721566,0.02208,90610.0,90601.0,0.0110374]
[1768073721721,0.02208,90610.0,90600.0,0.01103752]
[1768073721888,0.02208,90610.0,90601.0,0.0110374]
[1768073723157,0.02208,90610.0,90599.0,0.02207528]
[1768073723707,0.02208,90610.0,90600.0,0.29272841]
[1768073726619,0.02208,90610.0,90600.0,0.30376593]
[1768073726860,0.02208,90610.0,90600.0,0.29272841]
[1768073729702,0.02208,90610.0,90600.0,0.29268354]
[1768073730599,0.02208,90610.0,90599.0,0.02207528]
[1768073730964,0.02208,90610.0,90599.0,0.01103764]
[1768073731603,0.02208,90610.0,90599.0,0.02207528]
[1768073733251,0.02208,90610.0,90599.0,0.01103764]
[1768073733595,0.02208,90610.0,90599.0,0.02207528]
[1768073734249,0.02208,90610.0,90599.0,0.01103764]
[1768073734623,0.02208,90610.0,90599.0,0.02207528]
[1768073735691,0.02208,90610.0,90600.0,0.01103752]
[1768073736489,0.02208,90610.0,90601.0,0.0110374]
[1768073736832,0.02208,90610.0,90600.0,0.01103752]
[1768073737154,0.02208,90610.0,90601.0,0.0110374]
[1768073738117,0.02208,90610.0,90600.0,0.01103752]
[1768073738298,0.02208,90610.0,90601.0,0.0110374]
[1768073738773,0.02208,90610.0,90600.0,0.01103752]
[1768073739251,0.02208,90610.0,90601.0,0.0110374]
[1768073739411,0.00412366,90610.0,90601.0,0.0110374]
[1768073740986,0.00412366,90610.0,90600.0,0.01103752]
[1768073741805,0.00412366,90610.0,90601.0,0.0110374]
[1768073742002,0.00412366,90610.0,90600.0,0.01103752]
[1768073742258,0.00412366,90610.0,90601.0,0.0110374]
[1768073742944,0.00412366,90610.0,90600.0,0.01103752]
[1768073743319,0.00412366,90610.0,90601.0,0.0110374]
[1768073744370,0.00412366,90610.0,90600.0,0.01103752]
[1768073745178,0.00412366,90610.0,90599.0,0.02207528]
[1768073745685,0.00412366,90610.0,90600.0,0.01103752]
[1768073746322,0.00412366,90610.0,90601.0,0.0110374]
[1768073746520,0.00412366,90610.0,90600.0,0.01099265]
[1768073747732,0.00412366,90610.0,90601.0,0.0110374]
[1768073747874,0.00412366,90610.0,90599.0,0.01103764]
[1768073748068,0.00412366,90610.0,90599.0,0.02207528]
[1768073748269,0.00412366,90610.0,90599.0,0.01103764]
[1768073749398,0.03570321,90611.0,90599.0,0.02207528]
[1768073752304,0.04673939,90611.0,90599.0,0.01103764]
[1768073753187,0.03570321,90611.0,90599.0,0.02207528]
[1768073753490,0.04673939,90611.0,90599.0,0.01103764]
[1768073754978,0.0110363,90610.0,90599.0,0.01103764]
[1768073755138,0.01103655,90608.0,90599.0,0.01103764]
[1768073755516,0.01103643,90609.0,90599.0,0.01103764]
[1768073756501,0.05858658,90610.0,90599.0,0.01103764]
[1768073757664,0.01103655,90608.0,90599.0,0.01103764]
[1768073757861,0.01103667,90607.0,90599.0,0.01103764]
[1768073758271,0.01103679,90606.0,90599.0,0.01103764]
[1768073759310,0.01103667,90607.0,90599.0,0.01103764]
[1768073760287,0.01103691,90605.0,90599.0,0.01103764]
[1768073760686,0.01103679,90606.0,90599.0,0.01103764]
[1768073761674,0.01103691,90605.0,90599.0,0.01103764]